bitfinex/quotes_SOLUSD_20250831
["timestamp","ask_amount","ask_price","bid_price","bid_amount"]
[1756622839831,8.9830217,203.79,203.78,0.03]
[1756622840036,11.48605764,203.79,203.78,0.03]
[1756622840224,7.41004806,203.79,203.78,0.03]
[1756622840649,8.13004806,203.79,203.78,0.03]
[1756622840847,10.09753506,203.79,203.78,0.03]
[1756622841147,14.04364575,203.79,203.78,0.03]
[1756622841444,13.32364575,203.79,203.78,0.03]
[1756622841635,9.37753506,203.79,203.78,0.03]
[1756622841949,7.41004806,203.79,203.78,0.03]
[1756622842447,9.37753506,203.79,203.78,0.03]
[1756622847736,7.41004806,203.79,203.78,0.03]
[1756622848333,4.90701212,203.79,203.78,0.03]
[1756622848535,4.08491486,203.79,203.78,0.7]
[1756622848755,6.5879508,203.79,203.78,0.7]
[1756622848957,4.08491486,203.79,203.78,0.7]
[1756622849543,30.08491486,203.79,203.78,0.7]
[1756622850855,30.08387785,203.79,203.78,0.7]
[1756622851042,32.58691379,203.79,203.78,0.7]
[1756622851230,30.08387785,203.79,203.78,0.7]
[1756622851837,32.58691379,203.79,203.78,0.7]
[1756622852756,32.58691379,203.79,203.78,0.68]
[1756622854456,30.08387785,203.79,203.78,0.68]
[1756622854757,28.50303594,203.79,203.78,3.9448995]
[1756622856159,28.56303594,203.79,203.78,3.9448995]
[1756622856546,26.06,203.79,203.78,3.9448995]
[1756622857165,26.06,203.79,203.78,3.94415217]
[1756622859233,4.14387785,203.82,203.78,11.35444102]
[1756622859438,0.06,203.82,203.79,6.47718811]
[1756622859661,0.06,203.82,203.8,3.26415217]
[1756622859867,0.06,203.82,203.81,3.26415217]
[1756622860035,0.06,203.82,203.81,3.97415217]
[1756622860449,0.06,203.82,203.81,5.61653059]
[1756622860656,0.06,203.82,203.81,8.87750291]
[1756622864560,0.06,203.82,203.81,5.61653059]
[1756622865959,0.06,203.82,203.81,11.29470265]
[1756622867471,0.06,203.82,203.81,8.11956653]
[1756622868147,0.06,203.82,203.81,11.2925586]
[1756622870064,0.06,203.82,203.81,8.78952266]
[1756622870551,0.06,203.82,203.81,3.17299207]
[1756622870757,2.56303594,203.82,203.8,4.90670395]
[1756622871551,2.50303594,203.81,203.79,4.90696064]
[1756622873450,3.90765717,203.81,203.78,4.91725291]
[1756622873652,3.90765717,203.81,203.78,5.62725291]
[1756622874457,3.90765717,203.81,203.78,4.91725291]
[1756622874683,3.90765717,203.79,203.78,4.91725291]
[1756622875451,3.90765717,203.79,203.78,0.01]
[1756622877274,3.90765717,203.81,203.78,0.72]
[1756622878474,0.06,203.82,203.79,0.71]
[1756622878655,3.96765717,203.82,203.79,0.71]
[1756622878862,3.96765717,203.82,203.78,0.01]
[1756622878863,3.90765717,203.8,203.78,0.01]
[1756622879270,4.61765717,203.8,203.78,4.91725291]
[1756622880059,0.77,203.82,203.78,4.91725291]
[1756622880360,3.90765717,203.8,203.78,4.91725291]
[1756622880782,3.90765717,203.81,203.78,4.91725291]
[1756622880984,3.90765717,203.81,203.78,5.62725291]
[1756622881157,3.90765717,203.81,203.79,0.71]
[1756622881359,3.96765717,203.82,203.79,0.71]
[1756622882084,0.06,203.82,203.79,0.71]
[1756622882380,3.96765717,203.82,203.79,0.71]
[1756622882570,3.96765717,203.82,203.8,4.90677134]
[1756622883883,0.74,203.82,203.8,4.90677134]
[1756622884067,4.64765717,203.82,203.8,4.90677134]
[1756622884267,0.74,203.82,203.8,4.90677134]
[1756622884482,3.90765717,203.81,203.79,4.90696936]
[1756622884667,4.58765717,203.8,203.78,42.87720537]
[1756622884863,4.58765717,203.79,203.78,4.91720537]
[1756622885263,0.68,203.79,203.78,4.91720537]
[1756622885463,4.58765717,203.79,203.78,4.91720537]
[1756622885772,3.90765717,203.8,203.78,0.01]
[1756622886163,4.58765717,203.81,203.78,0.01]
[1756622886885,4.58765717,203.81,203.78,0.71]
[1756622887188,4.58765717,203.81,203.79,4.90701212]
[1756622888986,4.58765717,203.81,203.79,26.0]
[1756622889377,3.90765717,203.81,203.79,26.0]
[1756622889777,4.58765717,203.81,203.79,26.0]
[1756622891091,3.96765717,203.82,203.8,4.90677134]
[1756622891473,0.06,203.82,203.8,4.90677134]
[1756622892060,4.64765717,203.82,203.8,4.90677134]
[1756622892290,3.96765717,203.82,203.8,4.90677134]
[1756622892991,4.64765717,203.82,203.8,4.90677134]
[1756622893299,4.64765717,203.82,203.79,4.90701212]
[1756622893482,4.64765717,203.82,203.79,4.93701212]
[1756622893780,4.64765717,203.82,203.79,42.89701212]
[1756622894573,4.64765717,203.82,203.79,43.59701212]
[1756622894973,4.64765717,203.82,203.8,7.8027847]
[1756622894974,0.06,203.82,203.8,7.8027847]
[1756622895186,0.06,203.82,203.8,0.7]
[1756622895573,0.06,203.82,203.79,47.50466929]
[1756622895881,0.06,203.82,203.8,3.19544982]
[1756622896191,0.06,203.82,203.79,43.59701212]
[1756622896378,0.06,203.82,203.8,3.1957668]
[1756622896585,0.06,203.82,203.79,43.59701212]
[1756622896769,0.06,203.82,203.8,3.19586115]
[1756622896970,0.06,203.82,203.79,43.59701212]
[1756622897271,0.06,203.82,203.8,3.19586115]
[1756622897494,0.06,203.82,203.81,3.19586115]
[1756622899193,0.06,203.82,203.81,8.10239174]
[1756622899395,4.64765717,203.82,203.81,3.19586115]
[1756622899598,4.64765717,203.82,203.79,0.03]
[1756622899906,0.74,203.82,203.79,0.03]
[1756622901087,3.90765717,203.81,203.79,0.03]
[1756622901497,0.06,203.82,203.79,0.03]
[1756622901670,4.64765717,203.82,203.79,0.03]
[1756622902274,0.68,203.81,203.79,0.03]
[1756622903777,4.58765717,203.81,203.79,0.03]
[1756622903979,0.68,203.8,203.79,0.03]
[1756622905984,35.49442851,203.8,203.79,0.03]
[1756622906185,13.59559401,203.79,203.76,0.03]
[1756622906500,13.59559401,203.79,203.75,0.03]
[1756622906501,26.0,203.76,203.75,0.03]
[1756622906678,33.98719517,203.76,203.75,0.03]
[1756622906878,30.759538,203.76,203.75,0.03]
[1756622907078,39.57492975,203.76,203.75,0.03]
[1756622907381,40.40485775,203.76,203.75,0.03]
[1756622909304,44.48011566,203.76,203.75,0.03]
[1756622909486,40.40485775,203.76,203.75,0.03]
[1756622913402,36.49720058,203.76,203.75,0.03]
[1756622913607,40.40485775,203.76,203.75,0.03]
[1756622914785,31.589466,203.76,203.75,0.03]
[1756622914981,40.40485775,203.76,203.75,0.03]
[1756622919513,36.49720058,203.76,203.75,0.03]
[1756622920094,40.40485775,203.76,203.75,0.03]
[1756622920796,39.72485775,203.76,203.75,0.03]
[1756622920996,40.44485775,203.76,203.75,0.03]
[1756622922125,36.53720058,203.76,203.75,0.03]
[1756622922297,40.44485775,203.76,203.75,0.03]
[1756622922896,9.53712317,203.76,203.75,0.03]
[1756622924312,14.44485775,203.76,203.75,0.03]
[1756622924489,9.53712317,203.76,203.75,0.03]
[1756622924692,8.81712317,203.76,203.75,0.03]
[1756622926616,9.53712317,203.76,203.75,0.03]
[1756622928828,9.59712317,203.76,203.75,0.03]
[1756622931424,8.19221758,203.76,203.75,0.03]
[1756622932226,13.09995216,203.76,203.75,0.03]
[1756622934498,8.19048616,203.76,203.75,0.03]
[1756622934699,10.15807016,203.76,203.75,0.03]
[1756622935728,8.19048616,203.76,203.75,0.03]
[1756622936726,10.15807016,203.76,203.75,0.03]
[1756622941229,9.43807016,203.76,203.75,0.03]
[1756622941415,10.15807016,203.76,203.75,0.03]
[1756622942732,40.707584,203.76,203.75,0.03]
[1756622942918,43.21033558,203.76,203.75,0.03]
[1756622943816,41.24275158,203.76,203.75,0.03]
[1756622944011,46.15048616,203.76,203.75,0.03]
[1756622946340,50.22574407,203.76,203.75,0.03]
[1756622946538,12.26574407,203.76,203.75,0.03]
[1756622946840,45.31800949,203.76,203.75,0.03]
[1756622947226,50.22574407,203.76,203.75,0.03]
[1756622948353,46.15048616,203.76,203.75,0.03]
[1756622949736,48.11816616,203.76,203.75,0.03]
[1756622950044,53.56230158,203.76,203.75,0.03]
[1756622950239,48.11816616,203.76,203.75,0.03]
[1756622950444,61.71376017,203.76,203.75,0.03]
[1756622950649,69.87696612,203.76,203.75,0.03]
[1756622950941,59.21100859,203.76,203.75,0.03]
[1756622951252,61.71376017,203.76,203.75,0.03]
[1756622952750,61.77376017,203.76,203.75,0.03]
[1756622953547,23.75376017,203.76,203.75,0.03]
[1756622953845,61.77376017,203.76,203.75,0.03]
[1756622955527,13.59559401,203.75,203.74,0.03]
[1756622955744,16.09834559,203.75,203.74,0.03]
[1756622955920,16.78834559,203.75,203.74,0.03]
[1756622956116,18.75651059,203.75,203.74,0.03]
[1756622957351,23.66448605,203.75,203.74,0.03]
[1756622957852,26.0,203.72,203.67,0.72]
[1756622958054,28.50275158,203.68,203.63,2.50275158]
[1756622958555,28.50275158,203.68,203.64,0.72]
[1756622959125,26.0,203.68,203.64,0.72]
[1756622959419,28.50275158,203.68,203.64,0.72]
[1756622959624,2.50275158,203.67,203.64,0.72]
[1756622962432,26.0,203.68,203.64,5.63058428]
[1756622962763,2.50275158,203.66,203.65,0.72]
[1756622962919,2.50275158,203.67,203.65,0.72]
[1756622963125,2.50275158,203.67,203.66,0.72]
[1756622963733,26.0,203.68,203.66,0.72]
[1756622963934,2.50275158,203.67,203.66,0.72]
[1756622966354,3.19275158,203.67,203.63,0.03]
[1756622966653,0.69,203.66,203.63,0.03]
[1756622967158,2.50275158,203.64,203.63,0.03]
[1756622967537,0.69,203.64,203.63,0.03]
[1756622967743,3.19275158,203.64,203.63,0.03]
[1756622968140,0.69,203.64,203.63,0.03]
[1756622968458,3.19275158,203.64,203.63,0.03]
[1756622969029,0.69,203.64,203.63,0.03]
[1756622969251,23.66791218,203.64,203.63,0.03]
[1756622978152,62.06791218,203.64,203.63,0.03]
[1756622983466,62.12791218,203.64,203.63,0.03]
[1756622983961,61.39791218,203.64,203.63,0.03]
[1756622984543,62.11791218,203.64,203.63,0.03]
[1756622984763,61.39791218,203.64,203.63,0.03]
[1756622985074,18.12728559,203.64,203.63,0.03]
[1756622985276,56.48728559,203.64,203.63,0.03]
[1756622985868,61.39791218,203.64,203.63,0.03]
[1756622986455,39.59559401,203.61,203.6,0.03]
[1756622986646,30.91249138,203.57,203.54,0.68]
[1756622986963,38.34,203.56,203.54,0.68]
[1756622987157,2.50275158,203.55,203.54,0.68]
[1756622987355,69.405886,203.56,203.47,5.06588627]
[1756622987356,26.0,203.56,203.55,0.68]
[1756622987561,29.91878516,203.56,203.55,0.68]
[1756622987772,26.0,203.56,203.55,0.68]
[1756622987953,29.91878516,203.56,203.55,0.68]
[1756622989151,69.254488,203.57,203.53,0.68]
[1756622989358,3.91878516,203.54,203.53,0.68]
[1756622989852,42.23878516,203.55,203.53,0.68]
[1756622990658,42.23878516,203.55,203.54,0.68]
[1756622992067,42.23878516,203.55,203.52,0.68]
[1756622992257,42.23878516,203.55,203.53,0.68]
[1756622992258,3.91878516,203.54,203.53,0.68]
[1756622992456,38.32,203.55,203.53,0.68]
[1756622992662,3.91878516,203.54,203.53,0.68]
[1756622993174,3.91878516,203.54,203.5,4.91393163]
[1756622993474,3.91878516,203.54,203.52,0.68]
[1756622995380,3.91878516,203.53,203.5,0.68]
[1756622995546,38.34,203.53,203.47,3.91878516]
[1756622995751,38.34,203.53,203.5,0.68]
[1756622995954,38.34,203.53,203.51,0.68]
[1756622996455,38.34,203.53,203.47,0.68]
[1756622996456,4.63878516,203.52,203.47,0.68]
[1756622996656,3.91878516,203.5,203.48,0.68]
[1756622996855,3.91878516,203.51,203.49,0.68]
[1756622997260,38.68,203.52,203.5,0.68]
[1756622997459,42.59878516,203.52,203.5,0.68]
[1756622997866,26.0,203.53,203.51,0.68]
[1756622998149,26.0,203.53,203.43,17.20493535]
[1756622998150,3.91878516,203.52,203.49,0.68]
[1756622998357,3.91878516,203.52,203.5,0.68]
[1756622999353,26.0,203.53,203.5,0.68]
[1756622999563,3.91878516,203.52,203.5,0.68]
[1756623000556,26.0,203.53,203.5,0.68]
[1756623000789,3.91878516,203.52,203.5,0.68]
[1756623001253,26.0,203.53,203.5,0.68]
[1756623001455,26.0,203.53,203.51,0.03]
[1756623001665,3.91878516,203.52,203.51,0.03]
[1756623002482,29.91878516,203.53,203.51,0.03]
[1756623002977,26.0,203.53,203.52,0.72]
[1756623003557,29.91878516,203.53,203.51,0.03]
[1756623003759,3.91878516,203.52,203.51,0.75]
[1756623003972,29.91878516,203.53,203.51,0.75]
[1756623004478,4.913945,203.56,203.52,0.72]
[1756623004783,0.06,203.6,203.53,0.72]
[1756623004965,0.06,203.6,203.59,3.91878516]
[1756623005152,0.06,203.6,203.59,4.63878516]
[1756623006355,0.06,203.6,203.59,9.55061776]
[1756623008492,1e-08,203.6,203.59,11.51897676]
[1756623009184,1e-08,203.6,203.59,25.11457077]
[1756623009558,1e-08,203.6,203.59,29.03335593]
[1756623009757,0.06,203.64,203.63,29.91878516]
[1756623010292,1e-08,203.64,203.63,30.63878516]
[1756623010470,1e-08,203.64,203.63,49.14524692]
[1756623011573,1e-08,203.64,203.63,45.22646176]
[1756623011862,1e-08,203.64,203.63,4.91086775]
[1756623012503,1e-08,203.64,203.63,9.54965291]
[1756623014259,1e-08,203.64,203.63,3.91878516]
[1756623014464,1e-08,203.64,203.62,3.91878516]
[1756623015097,1e-08,203.64,203.61,39.22]
[1756623015265,1e-08,203.64,203.62,3.91878516]
[1756623015870,1e-08,203.64,203.61,3.91878516]
[1756623016072,0.68,203.63,203.54,12.28246208]
[1756623016273,4.59878516,203.62,203.56,8.83134165]
[1756623016487,3.91878516,203.61,203.56,8.83134165]
[1756623016709,0.68,203.6,203.56,8.83134165]
[1756623017083,0.68,203.59,203.56,8.83134165]
[1756623017794,0.68,203.59,203.56,4.91255649]
[1756623017998,0.68,203.59,203.56,8.83134165]
[1756623018208,3.91878516,203.61,203.56,8.83134165]
[1756623018382,0.68,203.6,203.56,8.83134165]
[1756623020222,0.68,203.6,203.55,4.91279783]
[1756623020420,0.68,203.6,203.56,3.91878516]
[1756623020790,0.68,203.6,203.55,44.83279783]
[1756623021004,0.68,203.6,203.56,3.91878516]
[1756623021204,3.91878516,203.6,203.55,48.73158299]
[1756623021405,4.59878516,203.6,203.56,0.72]
[1756623022090,3.91878516,203.6,203.55,8.86158299]
[1756623022286,0.68,203.59,203.55,48.00158299]
[1756623022488,0.68,203.59,203.55,48.72158299]
[1756623023106,0.68,203.59,203.55,44.80279783]
[1756623023413,0.68,203.59,203.55,48.72158299]
[1756623024028,3.91878516,203.6,203.55,48.72158299]
[1756623024209,4.59878516,203.6,203.55,48.72158299]
[1756623024401,0.68,203.6,203.57,4.91231517]
[1756623025509,3.91878516,203.62,203.58,0.72]
[1756623025714,4.59878516,203.62,203.58,0.72]
[1756623025916,4.59878516,203.61,203.57,4.91231517]
[1756623029012,26.68,203.62,203.57,5.63231517]
[1756623029217,4.59878516,203.61,203.57,5.63231517]
[1756623029419,26.0,203.62,203.57,5.63231517]
[1756623029602,4.59878516,203.61,203.57,5.63231517]
[1756623030125,0.68,203.61,203.57,5.63231517]
[1756623030302,29.91878516,203.62,203.57,5.63231517]
[1756623030510,30.59878516,203.62,203.57,5.63231517]
[1756623030709,3.91878516,203.61,203.57,44.69231517]
[1756623030897,4.59878516,203.61,203.57,44.69231517]
[1756623031694,3.91878516,203.62,203.58,0.65]
[1756623032915,4.58878516,203.62,203.59,4.9118326]
[1756623034128,3.91878516,203.61,203.59,4.9118326]
[1756623034420,1e-08,203.64,203.6,0.65]
[1756623034611,3.91878517,203.64,203.6,0.65]
[1756623034917,1e-08,203.64,203.61,39.71]
[1756623035595,1e-08,203.64,203.62,0.65]
[1756623036326,1e-08,203.64,203.63,5.56086775]
[1756623036535,1e-08,203.64,203.63,4.91086775]
[1756623036818,1e-08,203.64,203.63,5.56086775]
[1756623037324,1e-08,203.64,203.63,9.47965291]
[1756623038032,1e-08,203.64,203.63,5.56086775]
[1756623038204,1e-08,203.64,203.63,9.47965291]
[1756623039936,0.67000001,203.64,203.62,4.91105586]
[1756623040115,0.67,203.63,203.61,4.91134654]
[1756623040440,0.67,203.62,203.61,4.91134654]
[1756623040812,0.67,203.62,203.6,43.91154117]
[1756623041011,0.67,203.61,203.6,39.0]
[1756623041507,3.91878516,203.63,203.6,39.0]
[1756623041508,0.67,203.63,203.6,39.0]
[1756623041710,0.67,203.62,203.6,39.0]
[1756623041916,4.58878517,203.64,203.6,39.0]
[1756623042115,0.67,203.63,203.6,39.0]
[1756623042424,0.67,203.63,203.6,43.91158525]
[1756623043101,0.67,203.62,203.6,39.0]
[1756623043306,0.67,203.62,203.6,43.91158473]
[1756623043528,0.67,203.62,203.6,4.91158473]
[1756623043721,0.67,203.61,203.6,4.91158473]
[1756623044413,0.67,203.61,203.59,43.9118326]
[1756623044606,0.67,203.6,203.58,4.94202777]
[1756623044805,0.67,203.59,203.58,0.03]
[1756623045112,3.91878516,203.62,203.58,4.94207387]
[1756623045323,0.67,203.61,203.58,4.94207387]
[1756623046934,0.67,203.61,203.58,0.03]
[1756623047436,3.91878516,203.63,203.58,3.94878516]
[1756623047732,1e-08,203.64,203.59,4.56878516]
[1756623048109,0.67000001,203.64,203.6,39.02]
[1756623048333,4.58878517,203.64,203.6,39.02]
[1756623049241,1e-08,203.64,203.61,9.48013529]
[1756623049438,1e-08,203.64,203.61,4.91135013]
[1756623049736,0.67,203.63,203.61,39.0]
[1756623049927,4.58878516,203.62,203.6,4.91154968]
[1756623050119,0.67,203.62,203.6,4.91154968]
[1756623050319,1e-08,203.64,203.6,5.56154968]
[1756623050320,0.67000001,203.64,203.6,5.56154968]
[1756623051141,1e-08,203.64,203.62,4.91110892]
[1756623051342,0.67,203.63,203.61,4.91129624]
[1756623051544,0.67,203.63,203.62,3.14059766]
[1756623051717,1e-08,203.64,203.62,3.1405976]
[1756623051917,1e-08,203.64,203.61,5.56129624]
[1756623052118,1e-08,203.64,203.62,3.79059669]
[1756623052418,1e-08,203.64,203.62,0.65]
[1756623053441,1e-08,203.64,203.63,4.91086775]
[1756623054413,1e-08,203.64,203.63,5.56086775]
[1756623054638,1e-08,203.64,203.63,8.70152647]
[1756623054841,1e-08,203.64,203.63,12.62031163]
[1756623058446,1e-08,203.64,203.63,47.03152647]
[1756623059034,1e-08,203.64,203.63,8.05152647]
[1756623059347,1e-08,203.64,203.63,47.05152647]
[1756623059922,0.17000001,203.66,203.63,47.05152647]
[1756623060142,0.17000001,203.66,203.64,8.05112806]
[1756623060449,0.17000001,203.66,203.65,3.14065872]
[1756623061142,0.17000001,203.66,203.64,4.91046934]
[1756623061444,0.17000001,203.66,203.65,3.1426851]
[1756623061626,3.97878516,203.67,203.65,8.05307056]
[1756623061832,0.06,203.67,203.66,3.1426851]
[1756623062532,0.06,203.67,203.66,3.8626851]
[1756623063538,0.06,203.67,203.66,8.77282945]
[1756623064748,0.06,203.67,203.66,51.65161461]
[1756623064956,0.06,203.67,203.66,47.73282945]
[1756623065135,0.06,203.67,203.66,51.65161461]
[1756623068763,0.06,203.69,203.66,51.65161461]
[1756623068934,0.06,203.69,203.68,3.91878516]
[1756623069134,0.06,203.69,203.68,46.00147026]
[1756623069436,0.06,203.69,203.68,46.72147026]
[1756623069634,0.06,203.69,203.68,3.1426851]
[1756623069942,0.06,203.69,203.65,4.91033575]
[1756623069943,4.69878516,203.69,203.65,4.91033575]
[1756623070142,4.69878516,203.69,203.62,16.91630723]
[1756623070143,0.72,203.68,203.66,3.19382463]
[1756623070455,4.63878516,203.67,203.62,43.97109188]
[1756623070658,3.91878516,203.65,203.63,3.13360684]
[1756623070867,0.72,203.65,203.62,47.8897659]
[1756623071041,0.72,203.65,203.63,3.13360941]
[1756623071241,0.72,203.65,203.62,39.06]
[1756623071442,0.72,203.65,203.63,3.13370046]
[1756623071644,4.63878516,203.65,203.62,43.97109175]
[1756623071958,4.63878516,203.65,203.63,3.13385423]
[1756623072155,4.63878516,203.65,203.62,43.97109175]
[1756623072361,4.63878516,203.65,203.63,3.13412125]
[1756623072546,0.72,203.65,203.62,43.97109175]
[1756623072747,0.72,203.65,203.63,3.13412125]
[1756623072952,0.72,203.65,203.58,0.03]
[1756623072953,0.72,203.64,203.59,29.91878516]
[1756623073262,0.72,203.63,203.6,3.13414507]
[1756623073442,4.91012972,203.67,203.61,3.13414507]
[1756623073443,0.72,203.62,203.61,3.13414507]
[1756623074055,3.91878516,203.63,203.61,3.13414507]
[1756623074236,4.63878516,203.63,203.58,48.04076258]
[1756623074442,3.91878516,203.63,203.59,8.76674563]
[1756623074652,3.91878516,203.64,203.6,3.85500843]
[1756623074960,0.72,203.64,203.61,3.13500843]
[1756623075161,0.72,203.64,203.6,0.72]
[1756623075365,0.72,203.64,203.61,3.13516639]
[1756623075556,0.72,203.64,203.6,4.63878516]
[1756623075755,0.72,203.64,203.61,3.13516639]
[1756623075954,0.72,203.64,203.6,4.63878516]
[1756623076266,0.72,203.64,203.61,3.13516599]
[1756623076438,0.72,203.64,203.6,4.66878516]
[1756623076637,0.72,203.64,203.61,3.13535266]
[1756623076855,0.72,203.64,203.6,9.58032107]
[1756623077054,3.91878516,203.65,203.61,3.13535226]
[1756623077248,0.72,203.64,203.6,0.75]
[1756623077449,4.63878516,203.64,203.61,3.135543]
[1756623077766,26.72,203.66,203.62,0.72]
[1756623077946,3.91878516,203.65,203.62,0.72]
[1756623078139,3.91878516,203.65,203.6,8.86035136]
[1756623078346,4.63878516,203.65,203.61,3.85573934]
[1756623078554,26.0,203.66,203.61,5.63130515]
[1756623078764,3.91878516,203.65,203.61,5.63130515]
[1756623079139,4.63878516,203.65,203.61,5.63130515]
[1756623079953,3.91878516,203.64,203.61,4.91130515]
[1756623080352,26.0,203.66,203.62,0.72]
[1756623080551,3.91878516,203.65,203.62,0.72]
[1756623082056,4.63878516,203.65,203.61,4.91130515]
[1756623082263,4.63878516,203.65,203.61,5.63130515]
[1756623083671,26.0,203.66,203.62,0.72]
[1756623083969,3.91878516,203.65,203.62,0.72]
[1756623085671,3.91878516,203.65,203.6,0.03]
[1756623085867,4.63878516,203.65,203.61,0.72]
[1756623086675,0.72,203.65,203.6,0.03]
[1756623086862,0.72,203.65,203.62,0.72]
[1756623087677,3.91878516,203.66,203.62,5.63099667]
[1756623087872,0.78,203.67,203.63,0.72]
[1756623088179,4.69878516,203.67,203.63,0.72]
[1756623088377,0.78,203.67,203.63,0.72]
[1756623088577,3.97878516,203.67,203.63,0.72]
[1756623088777,0.72,203.66,203.63,0.72]
[1756623089284,0.72,203.66,203.62,8.82978183]
[1756623089487,0.72,203.65,203.62,4.91099667]
[1756623089657,3.97878516,203.67,203.63,0.72]
[1756623089857,4.69878516,203.67,203.63,5.63080164]
[1756623090684,0.78,203.67,203.63,8.8295868]
[1756623090867,0.78,203.67,203.63,9.5495868]
[1756623092481,0.78,203.67,203.63,5.63080164]
[1756623092788,0.78,203.67,203.63,9.5495868]
[1756623094380,0.78,203.67,203.63,8.8295868]
[1756623094683,4.69878516,203.67,203.64,4.91047638]
[1756623094985,0.06,203.67,203.64,5.63047638]
[1756623095685,0.75,203.67,203.64,5.63047638]
[1756623096562,0.06,203.67,203.64,5.63047638]
[1756623097993,0.75,203.67,203.64,5.63047638]
[1756623098185,0.75,203.67,203.64,4.91047638]
[1756623098669,4.66878516,203.67,203.63,0.72]
[1756623099167,3.91878516,203.66,203.63,0.72]
[1756623100373,4.60878516,203.65,203.61,4.91127857]
[1756623100566,3.91878516,203.65,203.61,5.63127857]
[1756623100765,3.91878516,203.65,203.62,0.72]
[1756623101060,0.75,203.67,203.61,8.83006373]
[1756623101265,3.91878516,203.66,203.63,0.72]
[1756623102293,0.75,203.67,203.64,4.91062659]
[1756623102470,0.75,203.67,203.64,5.63062659]
[1756623102471,3.97878516,203.67,203.64,5.63062659]
[1756623103279,0.06,203.67,203.64,5.63062659]
[1756623103465,3.97878516,203.67,203.64,5.63062659]
[1756623107377,3.91878516,203.66,203.64,0.72]
[1756623108597,0.06,203.67,203.65,0.72]
[1756623108797,3.97878516,203.67,203.65,0.72]
[1756623109573,3.97878516,203.67,203.64,4.91059394]
[1756623109880,3.97878516,203.67,203.64,5.63059394]
[1756623111590,0.06,203.67,203.64,5.63059394]
[1756623114273,0.06,203.67,203.65,0.72]
[1756623115893,0.06,203.67,203.66,0.72]
[1756623116083,0.06,203.67,203.65,0.72]
[1756623116291,0.06,203.67,203.65,5.63037272]
[1756623118688,0.06,203.67,203.66,0.72]
[1756623120893,0.06,203.67,203.65,4.91037272]
[1756623121085,0.06,203.67,203.65,5.63037272]
[1756623122300,0.06,203.67,203.65,0.65]
[1756623123105,0.06,203.67,203.66,0.65]
[1756623124202,0.06,203.67,203.66,5.56014435]
[1756623124907,0.06,203.67,203.66,0.65]
[1756623125681,0.06,203.67,203.66,5.56014435]
[1756623129712,0.06,203.67,203.65,4.91038546]
[1756623129916,0.06,203.67,203.65,5.56038546]
[1756623130600,0.06,203.67,203.64,4.94057753]
[1756623130601,0.73,203.67,203.64,4.94057753]
[1756623130910,0.06,203.67,203.64,4.94057753]
[1756623131113,0.06,203.67,203.64,5.59057753]
[1756623131696,0.06,203.67,203.64,0.68]
[1756623131910,0.06,203.67,203.64,0.03]
[1756623132212,0.06,203.67,203.65,0.65]
[1756623132709,0.06,203.67,203.64,4.94056324]
[1756623132909,0.06,203.67,203.65,0.65]
[1756623133892,0.06,203.67,203.65,5.59030951]
[1756623134494,0.06,203.67,203.66,0.65]
[1756623135719,0.06,203.67,203.65,5.59030951]
[1756623135897,0.06,203.67,203.66,0.65]
[1756623136293,3.23422515,203.67,203.65,0.03]
[1756623136619,3.17422515,203.66,203.65,0.03]
[1756623138120,7.2582955,203.66,203.65,0.03]
[1756623139119,12.16843985,203.66,203.65,0.03]
[1756623139322,5.58014435,203.66,203.65,0.03]
[1756623139529,10.0529225,203.66,203.65,0.03]
[1756623140414,23.64851651,203.66,203.65,0.03]
[1756623140727,29.09394364,203.66,203.65,0.03]